{"text_format":"2","workbook":"xlsx","n_sheets":1,"sheets":["NAVI掲載用（検索）"],"not_rendered":{"charts":0,"images":0,"macros":0,"external_links":0,"defined_names":1,"comments":0,"pivot_tables":0},"unopened":[],"bounds":{"document_bytes":16777216,"sheet_cells":100000,"run_cost":"one","rows_first":2000,"rows_last":500,"rows_between":2000,"halvings":0,"cell_chars":16384,"cell_head_chars":4096},"cells_cut":0,"cells_raw":0,"read":"whole","date_system":"1900"}

{"sheet":"NAVI掲載用（検索）","index":0,"n_rows":47,"n_cols":16,"rows_kept":47,"cut":false,"hidden":false,"merged":[[0,6,0,12],[0,13,1,13],[0,15,1,15],[0,14,1,14],[0,0,1,0],[0,1,1,1],[0,2,1,2],[0,3,1,3],[0,4,1,4],[0,5,1,5]]}
["府省名","補足","所在地","実施日","系統","実施形式","プログラムの内容",{"$nulls":6},"コメント","HPのURL","HPのURL"]
[{"$nulls":6},"庁舎内の見学（執務室内及び設備）","庁舎内の見学（廊下の通行のみ）","業務説明","職員の経験談等の紹介","職員との座談会","業務案内用のビデオ上映","その他"]
["会計検査院",null,"千代田区霞が関3-2-2　中央合同庁舎第７号館東館","12月1日（金）","全区分","対面・オンライン併用","－","－","〇","〇","－","－","〇","【あらゆる分野の知識を生かせます！】\n会計検査院は、霞が関にある庁舎から政策や事業が行われている国内外の現場に足を運び、国民の税金が適切に使われているかを自らの目でチェックする仕事をしています。また、あらゆる分野を検査対象としているため、自身の持つ様々な知識を生かし、「検査」という仕事を行えることも特徴の一つです。当日のイベントでは、業務内容や働く上での魅力などをお伝えいたします！みなさんのご参加お待ちしています。",{"$f":"HYPERLINK(P3)","v":"https://www.jbaudit.go.jp/recruit/business.html"},"https://www.jbaudit.go.jp/recruit/business.html"]
["人事院",null,"千代田区霞が関１－２－３　中央合同庁舎５号館別館","11月30日（木）","事務系","対面のみ","－","－","〇","－","〇","－","－","⼈事院は、⼈事⾏政の専⾨機関として、国の⾏政を担う国家公務員を⽀える役割を担っています。今回は、採⽤担当者が⼈事院の業務概要をご説明するとともに、複数名の職員と話ができる機会となっております。皆さまのご参加をお待ちしています︕",{"$f":"HYPERLINK(P4)","v":"https://www.jinji.go.jp/jinjika/jinjika-saiyo.html"},"https://www.jinji.go.jp/jinjika/jinjika-saiyo.html"]
["内閣情報調査室・内閣衛星情報センター",null,"千代田区永田町１－６－１　中央合同庁舎８号館","12月1日（金）","全区分","対面のみ","－","－","〇","〇","－","－","－","内閣情報調査室は、官邸との距離の近さが魅力の、日本の情報機関です。少しでもご興味を持っていただいた方、是非ご参加ください！","https://www.cas.go.jp/jp/saiyou/saiyou_info.html","https://www.cas.go.jp/jp/saiyou/saiyou_info.html"]
["内閣府",null,"千代田区永田町１ー６ー１　中央合同庁舎８号館","11月29日（水）","全区分","対面・オンライン併用","〇","－","〇","〇","－","－","－","内閣府。この三文字からは想像がつかないほど、内閣府は非常に幅広い分野を所管しています。今回は、業務概要の説明や実際に働いている職員のお話を聞いていただき、内閣府の所掌の幅広さと仕事の面白さをお伝えできればと思っています！庁内の様子も少しお見せできればと思いますので、皆様のご参加をお待ちしております。","https://job.axol.jp/hy/s/cao_25/public/top","https://job.axol.jp/hy/s/cao_25/public/top"]
["公正取引委員会",null,"千代田区霞が関1-1-1　中央合同庁舎第6号館B棟11階","11月30日（木）","事務系","対面のみ","－","〇","〇","〇","〇","－","－","公正取引委員会の業務内容をお伝えするほか、座談会では職員が体験談をお話しし、皆さんの御質問にお答えします。ぜひ御参加ください！\n","https://www.jftc.go.jp/soshiki/recruit/event.html","https://www.jftc.go.jp/soshiki/recruit/event.html"]
["警察庁","技術系","千代田区霞が関２－１　警察総合庁舎","11月29日（水）","技術系","対面のみ","－","－","〇","〇","〇","〇","－","鑑定人から直接話が聞けます。気軽に御参加ください。\n","https://www.npa.go.jp/about/recruitment/index.html","https://www.npa.go.jp/about/recruitment/index.html"]
["警察庁","技術系","千代田区霞が関２－１－２　中央合同庁舎２号館","11月29日（水）","技術系","対面・オンライン併用","－","－","〇","〇","－","－","－","普段なかなか話を聞くことのできない警察庁技術系の幹部職員から、今までの経験やキャリアパスの説明を通して、警察庁技術系の魅力をお伝えいたします。\nこの貴重な機会にぜひ御参加ください。","https://www.npa.go.jp/about/recruitment/index.html","https://www.npa.go.jp/about/recruitment/index.html"]
["警察庁","事務系","千代田区霞が関２－１－２　合同庁舎２号館","11月29日（水）","事務系","対面・オンライン併用","－","－","〇","〇","－","－","－","豊富な経験をもつ本庁幹部による講演です。警察庁の「使命」とその使命に燃える「人」を感じてください！","https://www.npa.go.jp/about/recruitment/event.html","https://www.npa.go.jp/about/recruitment/event.html"]
["科学警察研究所",null,"千代田区霞が関２－１－２　警察総合庁舎","11月29日（水）","技術系","対面のみ","－","－","〇","〇","〇","－","－","研究職員と直接お話ができる機会となりますので、少しでも興味をお持ちの方は、ぜひお気軽にご参加ください。","https://www.npa.go.jp/nrips/jp/recruit/seminar.html","https://www.npa.go.jp/nrips/jp/recruit/seminar.html"]
["カジノ管理委員会",null,"港区虎ノ門4-3-1城山トラストタワー12・13階","11月30日（木）","事務系","対面のみ","〇","－","〇","〇","〇","－","－","カジノ管理委員会に興味を持っていただきありがとうございます。皆様のお越しを心よりお待ちしております！","https://www.jcrc.go.jp/about/recruit/recruit_1.html","https://www.jcrc.go.jp/about/recruit/recruit_1.html"]
["金融庁",null,"東京都千代田区霞が関3－2－1 中央合同庁舎第７号館","12月1日（金）","全区分","対面・オンライン併用","－","－","〇","－","〇","－","－","金融庁の業務説明と若手職員座談会を実施いたします！ぜひお気軽にお越しください！","https://job.axol.jp/hy/s/fsa_25/public/top","https://job.axol.jp/hy/s/fsa_25/public/top"]
["消費者庁",null,"東京都千代田区霞が関3-1-1中央合同庁舎第4号館 4階共用408会議室","11月29日（水）","全区分","対面のみ","－","－","〇","〇","－","－","－","消費者庁採用職員から消費者庁の業務概要及び職員それぞれの業務についてお話します。ぜひご参加ください。","https://www.caa.go.jp/about_us/recruitment/employment_2023_010/","https://www.caa.go.jp/about_us/recruitment/employment_2023_010/"]
["こども家庭庁",null,"千代田区霞が関3-2-5　霞が関ビルディング14階","11月30日（木）","事務系","対面・オンライン併用","〇","－","〇","－","〇","－","－","人事担当からこども家庭庁の概要について説明し、若手職員と座談会を開催します。ぜひご参加ください！","https://www.cfa.go.jp/recruitment/sougou/event/","https://www.cfa.go.jp/recruitment/sougou/event/"]
["デジタル庁",null,"〒102-0094　東京都千代田区紀尾井町１－３　東京ガーデンテラス紀尾井町20Ｆ\n","12月1日（金）","全区分","対面のみ","〇","－","〇","－","〇","－","－","デジタル庁は、”誰一人取り残されない、人に優しいデジタル化”をミッションに、社会のDXを加速させるべく日々取り組んでいます。当日は、CxOからのメッセージや官民様々なバックグラウンドをもつ職員によるパネルディスカッションなどもありますので、ご興味ある方はぜひご参加ください！","https://www.digital.go.jp/recruitment/recruiting-session#event14","https://www.digital.go.jp/recruitment/recruiting-session#event14"]
["総務省","技術系","千代田区霞が関2-1-2 中央合同庁舎第2号館","11月29日（水）","技術系","対面のみ","－","－","〇","〇","〇","－","－","総務省では、情報通信技術に関する多くの制度を所管しており、通信・放送関係業界を規律するほか、先端的な研究開発、情報通信技術の利活用の推進、5Gや4K/8Kなど我が国の通信・放送方式の海外展開・国際標準化など、多種多様な施策を推進しております。ぜひお気軽にご参加ください！","https://www.soumu.go.jp/menu_syokai/saiyou/isougou_setumeikai.html","https://www.soumu.go.jp/menu_syokai/saiyou/isougou_setumeikai.html"]
["総務省","技術系（統計行政）","東京都千代田区霞が関2－1－2 中央合同庁舎第2号館","11月29日（水）","技術系","対面・オンライン併用","－","－","〇","〇","〇","－","－","総務省（統計行政分野）では理系出身の職員が多く活躍していることをご存じでしょうか？国民の合理的な意思決定の元となる「社会の情報基盤」についてご紹介いたします！","https://www.stat.go.jp/info/saiyo/index.html","https://www.stat.go.jp/info/saiyo/index.html"]
["総務省","事務系","東京都千代田区霞ヶ関2－1－2　中央合同庁舎２号館内会議室","11月29日（水）","事務系","対面・オンライン併用","－","－","〇","〇","－","－","－","「総てを務める」と書いて総務省。行政管理・評価、地方自治、情報通信といった幅広いフィールドにて国家行政や地方行政、国民生活の基盤を支えています。今回の説明会では、現場の第一線で活躍する職員から、その魅力を存分にお伝えします！","https://mic-recruit.snar.jp/jobboard/detail.aspx?id=1Grx1gETm28","https://mic-recruit.snar.jp/jobboard/detail.aspx?id=1Grx1gETm28"]
["法務省","矯正局","東京都千代田区霞が関１－１－１　中央合同庁舎６号館Ａ棟\n","12月1日（金）","事務系","対面・オンライン併用","－","－","〇","〇","－","－","－","「国民が安全・安心に暮らせる公正・公平な社会の実現」のため、法務行政が担う様々な重要な役割について、局課ごとに御紹介します。\nお気軽に御参加ください。","https://www.moj.go.jp/jinji/shomu/kanbou_jinji03b.html","https://www.moj.go.jp/jinji/shomu/kanbou_jinji03b.html"]
["法務省","刑事局","東京都千代田区霞が関１－１－１　中央合同庁舎６号館Ａ棟\n","12月1日（金）","事務系","対面・オンライン併用","－","－","〇","－","－","－","－","「国民が安全・安心に暮らせる公正・公平な社会の実現」のため、法務行政が担う様々な重要な役割について、局課ごとに御紹介します。\nお気軽に御参加ください。","https://www.moj.go.jp/jinji/shomu/kanbou_jinji03b.html","https://www.moj.go.jp/jinji/shomu/kanbou_jinji03b.html"]
["法務省","大臣官房施設課（技術系）","東京都千代田区霞が関１－１－１　中央合同庁舎６号館Ａ棟","12月1日（金）","技術系","対面・オンライン併用","〇","－","〇","－","〇","－","－","「国民が安全・安心に暮らせる公正・公平な社会の実現」のため、法務行政が担う様々な重要な役割について、局課ごとに御紹介します。お気軽に御参加ください。\n","https://www.moj.go.jp/jinji/shomu/kanbou_jinji03b.html","https://www.moj.go.jp/jinji/shomu/kanbou_jinji03b.html"]
["法務省","保護局","東京都千代田区霞が関１－１－１　中央合同庁舎６号館Ａ棟\n","12月1日（金）","事務系","対面・オンライン併用","－","－","〇","〇","〇","－","－","「国民が安全・安心に暮らせる公正・公平な社会の実現」のため、法務行政が担う様々な重要な役割について、局課ごとに御紹介します。お気軽に御参加ください。","https://www.moj.go.jp/jinji/shomu/kanbou_jinji03b.html","https://www.moj.go.jp/jinji/shomu/kanbou_jinji03b.html"]
["法務省","民事局","東京都千代田区霞が関１－１－１　中央合同庁舎６号館Ａ棟","12月1日（金）","事務系","対面・オンライン併用","－","－","〇","－","〇","－","－","「国民が安全・安心に暮らせる公正・公平な社会の実現」のため、法務行政が担う様々な重要な役割について、局課ごとに御紹介します。お気軽に御参加ください。\n","https://www.moj.go.jp/jinji/shomu/kanbou_jinji03b.html","https://www.moj.go.jp/jinji/shomu/kanbou_jinji03b.html"]
["出入国在留管理庁",null,"千代田区霞が関１－１－１　中央合同庁舎６号館A棟","11月30日（木）","事務系","対面のみ","〇","－","〇","－","〇","－","－","出入国在留管理庁は、外国人施策の司令塔として出入国及び在留の管理、受入れ環境整備、退去強制、難民の認定などの業務を行っています。\n本イベントで、当庁について少しでも理解を深めていただければと思っております。\n皆様の御参加を心よりお待ちしています！\n","https://www.moj.go.jp/isa/supply/recruitment/juken6.html","https://www.moj.go.jp/isa/supply/recruitment/juken6.html"]
["公安調査庁",null,"東京都千代田区霞が関1-1-1  中央合同庁舎６号館","12月1日（金）","全区分","対面・オンライン併用","－","－","〇","〇","〇","－","－","公安調査庁では、文系・理系を問わず、様々な試験区分出身者が調査官として活躍しています。インテリジェンスの業務に関心のある方、是非、当庁の業務説明会にお越しください。","https://www.moj.go.jp/psia/20231201.koumukennkyuu.html","https://www.moj.go.jp/psia/20231201.koumukennkyuu.html"]
["財務省本省",null,"千代田区霞が関3-1-1","11月29日（水）","事務系","対面・オンライン併用","－","－","〇","－","－","－","－",null,"https://job.axol.jp/hy/s/mof_25/public/blog/2","https://job.axol.jp/hy/s/mof_25/public/blog/2"]
["財務省財務局","事務系","千代田区霞が関３－１－１　財務省内会議室","11月29日（水）","事務系","対面・オンライン併用","－","－","〇","－","〇","－","－","入省したての若手係員及び係長年次後半（5～6年目）の職員を囲んで皆さんが気になる仕事のこと、組織風土のこと、転勤やその他気になることにお答えしますので少しでも気になっている方は是非参加してたくさん質問をしてください!!","https://lfb.mof.go.jp/recruit/saiyou1/before_enforcement.html","https://lfb.mof.go.jp/recruit/saiyou1/before_enforcement.html"]
["財務省税関",null,"東京都千代田区霞が関３－１－１　財務省内会議室","11月30日（木）","全区分","対面・オンライン併用","－","－","〇","〇","〇","－","－","税関の業務について説明させていただきます。\n座談会もありますので、職場や職員の雰囲気も感じていただけるのではないかと思います。\n少しでもご関心がある方は是非ご参加ください。お待ちしております！","https://www.customs.go.jp/saiyou/sogosaiyo.html#briefing","https://www.customs.go.jp/saiyou/sogosaiyo.html#briefing"]
["国税庁","技術系","千代田区霞が関３－１－１　財務省庁舎５階","12月1日（金）","技術系","対面のみ","－","－","〇","〇","〇","－","－","国税庁は酒類業を所管しており、技術系職員は「鑑定官」として酒類の分析・酒類製造者への技術支援等を実施しています。当日は業務説明の他、総合職技術系職員との座談会等も予定しております。ぜひお気軽にご参加ください。","https://www.nta.go.jp/about/recruitment/gijyutsu/seminar/index.htm","https://www.nta.go.jp/about/recruitment/gijyutsu/seminar/index.htm"]
["国税庁","事務系","千代田区霞ヶ関3-1-1","12月1日（金）","事務系","対面のみ","－","－","〇","〇","〇","－","－","「この国を、支える。」強い使命感をもって、幅広いフィールドで活躍する職員が登壇します！国税庁の魅力を存分にお伝えします。","https://www.i-note.jp/national-tax-agency/event/nta/allevents.html","https://www.i-note.jp/national-tax-agency/event/nta/allevents.html"]
["文部科学省",null,"千代田区霞が関3-2-2","12月1日（金）","全区分","対面・オンライン併用","－","－","〇","－","〇","－","－",null,"https://www.mext.go.jp/b_menu/saiyou/sougoujimu/detail/1362185_00002.htm","https://www.mext.go.jp/b_menu/saiyou/sougoujimu/detail/1362185_00002.htm"]
["厚生労働省","技術系（薬系）","千代田区霞が関１－２－２中央合同庁舎５号館17階　厚生労働省専用21会議室","11月30日（木）","技術系","対面のみ","－","－","〇","〇","〇","－","－","薬系技官は、化学、生物、薬学などの基礎知識を背景とした技術系の行政官です。\n医薬品や食品、化学物質など「モノ」が人体に与える影響に着目した、国民の暮らしや健康保持・増進に関する制度作りのほか、安全な医療を届けるための仕組み作りなどの分野を中心に活躍しています。\n総合職（化学・生物・薬学）に興味のある方は是非ご参加ください！","https://www.mhlw.go.jp/general/saiyo/kokka1/yakukei/information/","https://www.mhlw.go.jp/general/saiyo/kokka1/yakukei/information/"]
["厚生労働省","人間科学系","東京都千代田区霞が関１－２－２　中央合同庁舎５号館","11月30日（木）","事務系","対面・オンライン併用","－","－","〇","〇","〇","－","－",null,"https://www.mhlw.go.jp/general/saiyo/kokka1/kasumi_seminar.html","https://www.mhlw.go.jp/general/saiyo/kokka1/kasumi_seminar.html"]
["厚生労働省",null,"〒100-8916　東京都千代田区霞が関1-2-2　中央合同庁舎第５号館","11月30日（木）","技術系","対面のみ","〇","－","〇","〇","－","－","－","厚生労働省では、全ての人が自分らしく、安心して生きている社会を作るため、様々な取り組みを行っておりますが、その中で数理・デジタル系の職員は、これらの企画・立案に必要な分析などを行っています。\n数理科学や統計、情報系の知識をダイナミックに駆使し、国民の生活を豊かにしたいという思いをお持ちの皆さんのご参加をお待ちしております。","https://www.mhlw.go.jp/general/saiyo/kokka1/suuri.html","https://www.mhlw.go.jp/general/saiyo/kokka1/suuri.html"]
["厚生労働省",null,"千代田区霞が関１－２－２　中央合同庁舎５号館","11月30日（木）","事務系","対面・オンライン併用","－","－","〇","－","〇","－","－","厚生労働省では、国民一人ひとりの生活に寄り添い、支えるために、医療・公衆衛生・介護・年金・労働・福祉など社会保障や労働政策を通じて様々な取り組みを行っています。\n課題多きこの国で、一人ひとりの毎日の暮らしを支え、幸せを実現するために、厚生労働省が取り組んでいる政策や厚生労働行政の魅力をたっぷりお伝えします。","http://www.i-note.jp/mhlw/event/sougou-jimu/231130.html","http://www.i-note.jp/mhlw/event/sougou-jimu/231130.html"]
["農林水産省",null,"千代田区霞が関１－２－１　中央合同庁舎１号館","11月30日（木）","全区分","対面・オンライン併用","－","－","〇","〇","－","－","－","農林水産省は「食」と「環境」を未来の世代に受け継ぐことを使命として日々業務にあたっています。\n\n一次産業や食品産業を核として、日本中・世界中を舞台に、多様な政策のフィールド（国際交渉・技術開発・地方創生・環境等）が広がっています。\n\n今回は中々聞くことができない農水省幹部による講演や、政策講演などを予定しておりますので文系の方・理系の方を問わず、ご関心のある方はぜひご参加ください！","https://maff-recruit.snar.jp/jobboard/detail.aspx?id=CEe-L-LWU7Z4ChOaUIN-cg","https://maff-recruit.snar.jp/jobboard/detail.aspx?id=CEe-L-LWU7Z4ChOaUIN-cg"]
["経済産業省",null,"千代田区霞が関１－３－１　経済産業省本省","11月29日（水）","全区分","対面のみ","〇","－","〇","－","〇","－","－","経済産業省のミッションは未来の日本を豊かにするための「国富の拡大」。その範囲は、産業・イノベーション政策、通商・貿易政策、資源・エネルギー政策など多岐にわたります。\n人々が豊かに暮らせる社会を創りたい…未来の日本を豊かにしたい…自分たちの未来を他人任せにせずに自分で考えて、一つ一つ実現したい人。そんな、あなたのご参加をお待ちしています！","https://www.meti.go.jp/information/recruit/event/jinji_event.html","https://www.meti.go.jp/information/recruit/event/jinji_event.html"]
["特許庁","デザイン系","千代田区霞が関３－４－３　特許庁本庁舎7階","12月1日（金）","技術系","対面・オンライン併用","－","－","〇","－","〇","－","－","特許庁へ出願される様々なデザイン（意匠）を審査する国家公務員、「意匠審査官」の業務紹介や若手職員との座談会を予定しています。「デザインを扱う国家公務員」と聞いて気になった方、お待ちしております！","https://www.jpo.go.jp/news/saiyo/kokka/isho/event/index.html","https://www.jpo.go.jp/news/saiyo/kokka/isho/event/index.html"]
["特許庁","技術系","千代田区霞が関３－４－３","12月1日（金）","技術系","対面のみ","－","－","〇","－","〇","－","－","特許審査官の業務を紹介します。特許審査官は、特許庁へ出願される発明の審査や知的財産に関する施策立案などを通じて、日本の産業を支えています。少しでも興味がある方は、是非ご参加ください！","https://www.jpo.go.jp/news/saiyo/kokka/jimu/event/komu-kenkyu-seminar.html","https://www.jpo.go.jp/news/saiyo/kokka/jimu/event/komu-kenkyu-seminar.html"]
["特許庁","事務系、事務職員","東京都千代田区霞が関3-4-3\n・霞ヶ関駅（丸ノ内線・日比谷線・千代田線）　A13番出口より徒歩７分\n・国会議事堂前駅（丸ノ内線・千代田線）　３番出口より徒歩５分\n・虎ノ門駅（銀座線）　５番出口より徒歩４分\n・溜池山王駅（南北線・銀座線）　８番出口より徒歩５分","12月1日（金）","事務系","対面のみ","〇","－","〇","〇","〇","－","－","特許庁は和気あいあいとして、忙しくても、成長を感じながら楽しく過ごすことのできる職場です。国家公務員OPENゼミをとおして、魅力あふれる特許庁について存分に紹介させていただきます！","https://www.jpo.go.jp/news/saiyo/kokka/jimu/event/index.html","https://www.jpo.go.jp/news/saiyo/kokka/jimu/event/index.html"]
["特許庁",null,"東京都千代田区霞が関３丁目４−３","12月1日（金）","事務系","対面のみ","〇","－","〇","〇","〇","－","－","身近に溢れる商標の魅力をご紹介するとともに、実際の審査端末を使用して、商標審査官が審査を行うポイントをわかりやすくご説明する予定です。商標審査官との座談会も開催予定ですので、ぜひお気軽にお越しください！","https://www.jpo.go.jp/news/saiyo/kokka/jimu/event/komu-kenkyu-seminar.html","https://www.jpo.go.jp/news/saiyo/kokka/jimu/event/komu-kenkyu-seminar.html"]
["国土交通省",null,"千代田区霞が関２－１－３　中央合同庁舎３号館10階","11月30日（木）","技術系","対面のみ","－","－","〇","－","〇","－","－","今回のイベントは本省職員の声を直接聞くことができる機会となり、業務説明や座談会を予定しています。学年不問ですので、皆様の申し込みをお待ちしております！","https://www.mlit.go.jp/saiyojoho/event/synthesis_tech.html","https://www.mlit.go.jp/saiyojoho/event/synthesis_tech.html"]
["国土交通省",null,"千代田区霞が関２丁目１−２　中央合同庁舎２号館","11月29日（水）","事務系","対面・オンライン併用","－","－","〇","－","－","－","－","国土交通省は、安全・安心な暮らしをつくる分野、ダイナミックで経済成長に直結する分野など、陸・海・空にまたがった幅広いフィールドがあります。初めての方も大歓迎ですので、ぜひご参加ください！","https://www.mlit.go.jp/saiyojoho/event/synthesis_office.html","https://www.mlit.go.jp/saiyojoho/event/synthesis_office.html"]
["気象庁",null,"東京都港区虎ノ門3-6-9","11月30日（木）","技術系","対面のみ","－","〇","－","－","〇","－","－","毎日の天気予報だけではない。「生活を、命を、最前線で守り抜く。」その使命感を持って働いている現場を実際に見たり、そこで活躍する職員の声を聞いてみませんか？\n皆様のご参加をお待ちしております。","https://www.jma.go.jp/jma/kishou/intro/recruit/info/koumuseminar.html","https://www.jma.go.jp/jma/kishou/intro/recruit/info/koumuseminar.html"]
["海上保安庁",null,"千代田区霞が関３－１－１　中央合同庁舎４号館","11月29日（水）","技術系","対面のみ","－","－","〇","〇","〇","－","－",null,"https://www1.kaiho.mlit.go.jp/saiyo/setsumei.html","https://www1.kaiho.mlit.go.jp/saiyo/setsumei.html"]
["環境省",null,"東京都千代田区霞が関一丁目2番2号 19F 第１会議室、第２会議室","11月30日（木）","全区分","対面のみ","〇","－","〇","－","〇","－","－","環境省の仕事の概要、やりがい、職場の状況などなど、環境行政の最前線をご紹介します！\nお気軽にご参加下さい！\n","https://www.env.go.jp/guide/saiyo/cat_ra1/post_30_00006.html","https://www.env.go.jp/guide/saiyo/cat_ra1/post_30_00006.html"]